Cogmind - Beta 15 @@@ ROGUE MODE // 2025.05.13 @ 22:30:50 Player: Kazimir57 Result: Destroyed by Y-45 Defender with Heavy Assault Rifle Performance ------------- Evolutions (1) 500 Regions Visited (2) 400 Robots Destroyed (31) 155 Value Destroyed (861) 861 Prototype IDs (0) 0 Alien Tech Used (0) 0 Bonus (0) 0 TOTAL SCORE: 1916 Bonus ------- None Cogmind --------- Core Integrity 0/400 Matter 54/300 Energy 265/265 System Corruption 0% Temperature Cool (0) Movement Treading (160) Location -9/Materials Parts ------- > --- POWER (1) -------- Improved Ion Engine > --- PROPULSION (3) --- Light Treads Light Treads > --- UTILITY (3) ------ Large Storage Unit Signal Interpreter Utility Shielding > --- WEAPON (2) ------- Autogun Autogun > --- INVENTORY (15) --- Aluminum Leg Medium Laser Heavy Assault Rifle EMP Blaster Peak State ------------ > --- POWER ------------ Ion Engine > --- PROPULSION ------- Wheel Wheel Compact Wheel > --- UTILITY ---------- Large Storage Unit Signal Interpreter Utility Shielding > --- WEAPON ----------- Autogun Rocket Launcher > --- INVENTORY -------- Light Treads Light Treads Aluminum Leg Wheel Medium Laser Autogun Autogun EMP Blaster [Rating: 12] Favorites ----------- Power Ion Engine Engine Ion Engine Propulsion Light Treads Treads Light Treads Leg Aluminum Leg Wheel Wheel Utility Large Storage Unit Storage Large Storage Unit Processor Signal Interpreter Protection Utility Shielding Weapon Light Assault Rifle Energy Gun Medium Laser Ballistic Gun Light Assault Rifle Launcher Rocket Launcher Build | -11 -10 -9 ------- Run | Yrd Mat Mat Slots Evolved 2 | . . 2 Power . | . . . Propulsion 1 | . . 1 Utility 1 | . . 1 Weapon . | . . . Parts Attached 32 | 7 5 20 Power 5 | . 2 3 Engine 5 | . 2 3 Core . | . . . Reactor . | . . . Propulsion 10 | 3 1 6 Treads 4 | 2 . 2 Leg 2 | . 1 1 Wheel 4 | 1 . 3 Hover . | . . . Flight . | . . . Utility 4 | 1 2 1 Device . | . . . Storage 2 | 1 1 . Processor 1 | . . 1 Hackware . | . . . Protection 1 | . 1 . Artifact . | . . . Weapon 13 | 3 . 10 Energy Gun 3 | 2 . 1 Energy Cannon . | . . . Ballistic Gun 6 | 1 . 5 Ballistic Cannon . | . . . Launcher 4 | . . 4 Special Weapon . | . . . Impact Weapon . | . . . Slashing Weapon . | . . . Piercing Weapon . | . . . Special Melee Weapon . | . . . Unidentified Prototypes . | . . . Parts Lost 17 | . . 17 Power 3 | . . 3 Propulsion 8 | . . 8 Utility . | . . . Weapon 6 | . . 6 Highest Loss Streak 10 | . . 10 To Critical Strikes . | . . . Average Backups 6 | 5 7 6 Power . | 1 1 . Propulsion 3 | 3 4 2 Utility . | . . . Weapon 2 | . 1 3 Tool/Special . | . . . Unused Backups 2 | . . 2 Power . | . . . Propulsion 1 | . . 1 Utility . | . . . Weapon 1 | . . 1 Tool/Special . | . . . Average Slot Usage (%) 92 | . 93 90 Engine 12 | . 13 10 Treads 18 | . 26 9 Leg 1 | . . 3 Wheel 6 | . . 12 Storage 13 | . 16 11 Processor 5 | . . 10 Protection 9 | . 7 11 Energy Gun 9 | . 14 4 Ballistic Gun 12 | . 14 11 Launcher 2 | . . 5 Peak Build Rating 12 | 5 7 12 Average Rating 7 | 4 6 10 On Entrance 4 | . 5 7 Naked Turns . | . . . Heaviest Build 34 | 8 33 34 Greatest Support 40 | 40 40 40 Greatest Overweight (x) 7 | . 7 1 Average Overweight (x) . | . . . Largest Inventory Capacity 15 | 8 15 15 Average Capacity 12 | 7 12 15 Most Carried 11 | 7 11 9 Average Carried 6 | 6 7 6 Final Capacity 15 | 8 15 15 Final Carried 9 | 7 9 4 Class Distribution -------------------- 100% | Mutant Dominant Class ---------------- Mutant | -10/Materials Mutant | -9/Materials Resources | -11 -10 -9 ----------- Run | Yrd Mat Mat Matter Collected 654 | 272 72 310 Remotely . | . . . Salvage Created 861 | 74 336 451 Parts 52 | . 22 30 Haulers Intercepted . | . . . Recyclers Shooed 2 | . . 2 Parts Field Recycled . | . . . Retrieved Matter . | . . . Parts Self-Destructed . | . . . Prevented . | . . . Kills | -11 -10 -9 ------- Run | Yrd Mat Mat Combat Hostiles Destroyed 26 | . 12 14 Guns 17 | . 12 5 AOE 9 | . . 9 Classes Destroyed 10 | 1 2 7 Worker 1 | . . 1 Builder 1 | . . 1 Recycler 1 | 1 . . Operator 1 | . . 1 Watcher 1 | . . 1 Swarmer 8 | . 6 2 Grunt 11 | . 6 5 Brawler 1 | . . 1 Duelist 2 | . . 2 Sentry 4 | . . 4 Best Kill Streak 5 | 1 3 5 Combat Bots Only 4 | . 3 4 Max Kills in Single Turn 4 | 1 1 4 Gunslinging . | . . . Exploded 3 | . . 3 Melee . | . . . Uniques/NPCs Destroyed . | . . . Combat | -11 -10 -9 -------- Run | Yrd Mat Mat Hostile Shots Fired 246 | . 60 186 Missed 73 | . 15 58 Hits 173 | . 45 128 Melee 9 | . . 9 Projectile 164 | . 45 119 Critical Strikes 2 | . 1 1 Damage Taken 2393 | . 460 1933 Core 544 | . 130 414 Absorbed by Shields . | . . . Redirected to Shielding 40 | . 3 37 Regen/Repaired (Parts) 96 | . 96 . Core Remaining (%) 74 | 100 48 . Volleys Fired 109 | 6 34 69 Largest 2 | 2 2 2 Hottest 106 | 70 70 106 Shots Fired 182 | 12 68 102 Gun 168 | 12 68 88 Cannon . | . . . Launcher 14 | . . 14 Special . | . . . Kinetic 112 | 6 34 72 Thermal 56 | 6 34 16 Explosive 12 | . . 12 Electromagnetic 2 | . . 2 Robot Hit Streak 13 | 4 6 13 Robot Miss Streak 7 | 2 4 7 Penetration Max . | . . . Secondary Targets 2 | . 2 . Max Gunslinging Chain 1 | . 1 . Shots Hit Robots 96 | 5 36 55 Core Hits 61 | 2 20 39 Critical Kills 1 | . 1 . Critical Parts Destroyed . | . . . Critical Strikes 6 | . 4 2 Burn 5 | . 3 2 Destroy 1 | . 1 . Melee Attacks . | . . . Impact . | . . . Slashing . | . . . Piercing . | . . . Sneak Attacks . | . . . Combat Hostiles . | . . . Follow-up Attacks . | . . . Damage Inflicted 2347 | 59 398 1890 Guns 1229 | 59 395 775 Cannons . | . . . Explosions 1066 | . . 1066 Melee . | . . . Ramming 52 | . 3 49 Kinetic 816 | 22 156 638 Thermal 413 | 37 239 137 Explosive 1010 | . . 1010 Electromagnetic 56 | . . 56 Impact . | . . . Slashing . | . . . Piercing . | . . . Highest Corruption . | . . . Average Corruption . | . . . Corruption Purged . | . . . Corruption Blocked . | . . . Overload Shots . | . . . Overflow Damage 120 | . . 120 Projectiles . | . . . Explosions 120 | . . 120 Melee . | . . . Knockbacks . | . . . Impact . | . . . Kinetic . | . . . Secondary . | . . . Self-Inflicted Damage 224 | . . 224 Shots 7 | . . 7 Rammed 17 | 1 1 15 Targets Rammed 17 | 1 1 15 Kicked . | . . . Crushed . | . . . Highest Temperature 213 | 40 144 213 Average Temperature 45 | 20 48 45 Received Heat Transfer 618 | . 141 477 Siege Activations . | . . . Martial Activations . | . . . Shielding Activations . | . . . Robots Disrupted . | . . . Combat Hostiles . | . . . Robots Corrupted . | . . . Combat Hostiles . | . . . Parts Fried . | . . . Impact Corruptions . | . . . Robots Melted . | . . . Combat Hostiles . | . . . Parts Melted 5 | . 1 4 Heat Transferred 1554 | 111 925 518 Parts Sabotaged . | . . . Parts Stolen . | . . . Parts Stripped . | . . . Power Chain Reactions . | . . . Alert | -11 -10 -9 ------- Run | Yrd Mat Mat Maximum Alert Level 1 | . . 1 Low Security (%) 99 | 100 100 97 Level 1 . | . . 2 Level 2 . | . . . Level 3 . | . . . Level 4 . | . . . Level 5 . | . . . High Security . | . . . Max Security . | . . . Peak Influence 206 | 5 125 206 Initial 22 | . . 22 Average 53 | . 41 93 Influence Increases 860 | 5 297 558 Destroy 0b10 Robot/C 520 | . 240 280 Destroy 0b10 Robot/NC 25 | 5 . 20 Destroy Leader 132 | . 50 82 Successful Hack 16 | . 7 9 Disable Machine 60 | . . 60 Destroy Structure 107 | . . 107 Influence Decreases 724 | 5 244 475 Entered New Map 31 | . . 31 Time Decay 523 | 5 244 274 Lost Part 170 | . . 170 Squads Dispatched 3 | . 2 1 Investigation 1 | . 1 . Extermination . | . . . Reinforcement 2 | . 1 1 Assault . | . . . Garrison . | . . . Intercept . | . . . Searches Triggered . | . . . Construction Impeded 1 | . . 1 Haulers Reinforced . | . . . Active Scanning Responses . | . . . Cargo Convoy Interrupts . | . . . Stealth | -11 -10 -9 --------- Run | Yrd Mat Mat Distress Signals 5 | . 3 2 Communications Jammed . | . . . Distress Signals . | . . . Times Spotted 49 | . 21 28 Peak Tracking Total 11 | . 5 11 Tactical Retreats . | . . . Traps | -11 -10 -9 ------- Run | Yrd Mat Mat Traps Triggered 1 | . 1 . Indirectly . | . . . Trap Hack Attempts . | . . . Triggered . | . . . Disarmed . | . . . Reprogrammed . | . . . Reused . | . . . Traps Extracted . | . . . Installed . | . . . Triggered . | . . . Machines | -11 -10 -9 ---------- Run | Yrd Mat Mat Machines Disabled 4 | . . 4 Max in Single Turn 1 | . . 1 Machines Repaired . | . . . Machines Dismantled . | . . . Machines Sabotaged . | . . . Overloaded Fab Kills . | . . . Hacking | -11 -10 -9 --------- Run | Yrd Mat Mat Machines Accessed 4 | . 2 2 Terminals 3 | . 1 2 Fabricators . | . . . Repair Stations 1 | . 1 . Recycling Units . | . . . Scanalyzers . | . . . Garrison Access . | . . . Total Hacks 9 | . 5 4 Successful 7 | . 4 3 Failed 2 | . 1 1 Catastrophic . | . . . Database Lockouts . | . . . Manual . | . . . Terminals 6 | . 2 4 Fabricators . | . . . Repair Stations 3 | . 3 . Recycling Units . | . . . Scanalyzers . | . . . Garrison Access . | . . . Terminal Hacks 5 | . 2 3 Locate Traps 1 | . . 1 Surveillance Status 1 | . 1 . Investigation Status 1 | . . 1 Hauler Manifests 1 | . 1 . Zone Layout 1 | . . 1 Fabricator Hacks . | . . . Repair Station Hacks 2 | . 2 . Scan Component 1 | . 1 . Repair 1 | . 1 . Recycling Unit Hacks . | . . . Scanalyzer . | . . . Garrison Access Hacks . | . . . Unauthorized Hacks . | . . . Terminals . | . . . Fabricators . | . . . Repair Stations . | . . . Recycling Units . | . . . Scanalyzers . | . . . Garrison Access . | . . . Data Cores Recovered . | . . . Used . | . . . Hacking Detections 3 | . 1 2 Full Trace Events 1 | . 1 . Feedback Events . | . . . Feedback Blocked . | . . . Robot Schematics Acquired . | . . . Robots Built . | . . . Authchips . | . . . Time . | . . . Total Robot Build Rating . | . . . Part Schematics Acquired . | . . . Parts Built . | . . . Authchips . | . . . Time . | . . . Total Part Build Rating . | . . . Parts Repaired 1 | . 1 . Time 26 | . 26 . Parts Recycled . | . . . Recycled Matter . | . . . Retrieved Matter . | . . . Retrieved Components . | . . . Parts Scanalyzed . | . . . Part Schematics Acquired . | . . . Parts Damaged . | . . . Bothacking | -11 -10 -9 ------------ Run | Yrd Mat Mat Used RIF Installer . | . . . Robots Hacked . | . . . Non-combat . | . . . Combat . | . . . Robot Hacks Applied . | . . . Relay Couplers Released . | . . . Fabnet Peak Effective % . | . . . Robots Rewired . | . . . Allies Hacked . | . . . Hacks Repelled . | . . . Allies | -11 -10 -9 -------- Run | Yrd Mat Mat Total Allies . | . . . Largest Group . | . . . Highest-Rated Group . | . . . Highest-Rated Ally . | . . . Total Orders . | . . . Ally Attacks . | . . . Total Damage . | . . . Kills . | . . . Allies Corrupted . | . . . Allies Melted . | . . . Intel | -11 -10 -9 ------- Run | Yrd Mat Mat Active Infowar (turns) . | . . . Robot Analysis Total . | . . . Derelict Logs Recovered . | . . . Drone Launches . | . . . Drone Recoveries . | . . . Exploration | -11 -10 -9 ------------- Run | Yrd Mat Mat Turns Passed 1822 | 366 755 701 Spaces Moved 851 | 132 355 364 Core 6 | 1 5 . Treads 643 | 130 350 163 Legs 3 | . . 3 Wheels 199 | 1 . 198 Hover . | . . . Flight . | . . . Fastest Speed 50 | 50 160 86 Average Speed 148 | 158 163 128 Slowest Speed 400 | 160 400 240 Overloaded Moves . | . . . Propulsion Burnouts . | . . . Robots Hopped . | . . . Potential Cave-ins . | . . . Cave-ins Triggered . | . . . Exploration Rate (%) 37 | 12 62 37 Regions Visited 2 Branch Regions . Pre-discovered Areas . | . . . Known Exits Taken . | . . . Unknown Exits Taken 2 | 1 1 . Scrap Searched . | . . . Spaces Dug 14 | . . 14 Terrain Destroyed 110 | . . 110 Melee . | . . . Projectile . | . . . AOE 110 | . . 110 Terrain Rammed . | . . . Walls Destroyed . | . . . Machines Disabled . | . . . Actions | -11 -10 -9 --------- Run | Yrd Mat Mat Total 1230 | 274 463 493 Wait 184 | 122 59 3 Move 849 | 131 354 364 Hop . | . . . Pick Up 23 | 7 5 11 Fast Attach 12 | 5 3 4 Attach 18 | . 3 15 Detach . | . . . Swap 16 | 2 4 10 Drop 2 | . . 2 Fire 109 | 6 34 69 Melee . | . . . Ram . | . . . Kick . | . . . Crush 17 | 1 1 15 Escape Stasis . | . . . Rewire . | . . . Trap . | . . . Miscellaneous . | . . . Route ------- -11/Scrapyard -10/Materials (discovered 3 exits: *Mat x2 / [*Min]) -9/Materials History --------- Turn | Location | Event 22 | -11/Scrapyard | Discovered new exit (range 16) 367 | -11/Scrapyard | Entered Materials 388 | -10/Materials | Build established: Mutant 602 | -10/Materials | Discovered new exit (range 5) 817 | -10/Materials | Discovered new exit (range 16) 918 | -10/Materials | Repaired Lgt. Treads 945 | -10/Materials | Core integrity fell below 50% 989 | -10/Materials | Discovered new exit (range 16) 1122 | -10/Materials | Entered another Materials area 1122 | -9/Materials | Evolved 2 slots: Propulsion x1, Utility x1 1335 | -9/Materials | Core integrity fell below 50% 1377 | -9/Materials | Lost 10 parts (2p4n4w) 1633 | -9/Materials | Core integrity fell below 20% 1687 | -9/Materials | Lost 6 parts (1p3n2w) 1823 | -9/Materials | Destroyed by Y-45 Defender with Heavy Assault Rifle Last Messages --------------- 01767_ K-01 Serf collects debris. 01768_ U-05 Engineer builds a Door. 01769_ U-05 Engineer lays Concrete. 01770_ Slammed into W-16 Scout. 01770_ K-01 Serf collects debris. 01770_ U-05 Engineer lays Concrete. 01774_ K-01 Serf collects debris. 01774_ U-05 Engineer lays Concrete. 01775_ U-05 Engineer builds a Wall. 01777_ U-05 Engineer lays Concrete. 01778_ K-01 Serf collects debris. 01778_ U-05 Engineer lays Concrete. 01784_ K-01 Serf collects debris. 01785_ U-05 Engineer lays Concrete. 01789_ K-01 Serf collects debris. 01789_ W-16 Scout sends out distress signal. 01790_ U-05 Engineer lays Concrete. 01792_ K-01 Serf collects debris. 01798_ Slammed into W-16 Scout. 01802_ Slammed into Y-45 Defender. Map ----- +----------------------------------------------------+ | | | | | | | | | | | | | | | | | | | | | | | | | | | ??????????????????????????????????????????????#### | | ?????????????????????????????????????????????# """ | | ?????????????????????????????????????????????# "R" | | ??????????????????????????????????????? ?????# " " | | ??????????????????????????????????????? ?????# | | ?????????????????????????????????????? ?????# | | ????????????????????????###########???" #????# | | ????????????????????????# # """ #????# | | ????????????????????????# # """ ###### | | ??????????????????#####?# """ # # ##+## | | ?????????????###### # """ # + | | ?????????? # """ ""# # | | ?????????? t /@Y T"# "T" # ##+## | | ?????????? # ""# """ "# ## | | ?????????????###### ??# # "" "# | | ??????????????????##????####+#######"" """ "# """ | | ???????????????????????????# #????# " "" """ | | ??????????????????????????##+######" " """ | | ??????????????????????????# ! # "" """ | | ??????????????????????????# "" "" """ | | ??????????????????????????# " # "" | | ??????????????????????????# S + "##### | | ??????????????????????????# """ # "#???? | | ??????????????????????????# """ # ## # ##???? | | ??????????????????????????# """ ! # # ## #????? | | ??????????????????????????# # ## #????? | | ??????????????????????????###########/# # ????? | | ???????????????????????????# # ???? | | ???????????????????????????# ## ??? | | ???????????????????????????# # ?? | | ???????????????????????????# # ? | | ???????????????????????????# ## ? # | | ???????????????????? ????#######+####### # | | ???????????????????# ####### #???? " ?# | | ???????????????????# #???? """??? | | ???????????????????# ##??? ?????? | | ???????????????????# #??????????? | +----------------------------------------------------+ Best States ------------- Heat Dissipation 28 Energy Generation 12 Energy Capacity 265 Matter Stores 300 Matter Capacity 300 Sight Range 16 Terrain Scan Density 10 Utility Shielding 33 Evasion (%) 42 Recoil Reduction 2 Item Schematics ----------------- None Robot Schematics ------------------ None Fabricated ------------ Nothing Repaired ---------- Lgt. Treads | 31% | -10/Materials Alien Tech Used ----------------- None Achievements -------------- None Challenges ------------ None Game ------ Seed CooledGlidesysFlamer Manual? 0 Play Time 00:22:57 Cumulative 7.8 hours Start 2025.05.13 @ 22:05:42 End 2025.05.13 @ 22:30:50 Sessions 1 Manual Loads 0 Difficulty Rogue Special Mode None Game No. 15 Rogue 15 Adventurer 0 Explorer 0 Win Type - Total 0 Types 0/0/0/0/0/0/0/0/0/0 Lore% 5 Gallery% 14 Achievement% 13 Wizard Run 0 Options --------- Layout 1 ASCII 0 Keyboard 0 Movement Mouse Keybinds 0 Fullscreen 1 Font 24/Smallcaps Map View 50x35 Zoom Use 0% Tactical HUD 1 Map Filters NONE Filters NONE Steam 1 RUN: a3ec19f0-d438-4625-a0e2-19f042883d1c